bitfinex-derivatives/quotes_BTCF0:USTF0_20241103
["timestamp","ask_amount","ask_price","bid_price","bid_amount"]
[1730612762655,0.072906,68605.0,68600.0,0.06433234]
[1730612763752,0.073906,68605.0,68604.0,0.072907]
[1730612765154,0.074906,68605.0,68604.0,0.072907]
[1730612765859,0.073906,68605.0,68604.0,0.072907]
[1730612766055,0.11573384,68605.0,68604.0,0.072907]
[1730612766657,0.11473384,68605.0,68604.0,0.072907]
[1730612766857,0.11573384,68605.0,68604.0,0.072907]
[1730612767658,0.072909,68603.0,68602.0,0.072909]
[1730612767865,0.11371255,68603.0,68602.0,0.072909]
[1730612768055,0.11371255,68603.0,68596.0,0.3608]
[1730612768056,0.04080355,68603.0,68598.0,0.06433234]
[1730612768263,0.072911,68601.0,68599.0,0.072912]
[1730612768464,0.11347028,68600.0,68599.0,0.072912]
[1730612768859,0.072912,68599.0,68598.0,0.06433234]
[1730612769055,0.11347128,68599.0,68598.0,0.06433234]
[1730612769658,0.072915,68597.0,68596.0,0.00124]
[1730612769871,0.04055928,68597.0,68594.0,0.06433234]
[1730612770062,0.04055928,68596.0,68595.0,0.072917]
[1730612770261,0.04055928,68596.0,68595.0,0.13724934]
[1730612771358,0.07291,68601.0,68595.0,0.06433234]
[1730612771563,0.04029026,68600.0,68593.0,0.0301]
[1730612771867,0.001,68596.0,68595.0,0.077917]
[1730612772572,0.04129026,68596.0,68595.0,0.077917]
[1730612772876,0.04129026,68596.0,68595.0,0.082917]
[1730612773081,0.072911,68600.0,68599.0,0.072912]
[1730612773371,0.072911,68600.0,68599.0,0.13724434]
[1730612775775,0.072911,68600.0,68599.0,0.13824434]
[1730612775962,0.072911,68600.0,68599.0,0.13924434]
[1730612779371,0.072911,68600.0,68599.0,0.074912]
[1730612781372,0.10013881,68600.0,68599.0,0.074912]
[1730612782168,0.02722781,68600.0,68599.0,0.074912]
[1730612782377,0.06433234,68601.0,68600.0,0.072911]
[1730612782575,0.13724034,68604.0,68600.0,0.072911]
[1730612783666,0.06433234,68604.0,68600.0,0.072911]
[1730612783979,0.072908,68603.0,68600.0,0.072911]
[1730612785474,0.073908,68603.0,68600.0,0.072911]
[1730612785772,0.07291,68602.0,68600.0,0.072911]
[1730612786678,0.002,68603.0,68595.0,0.04369221]
[1730612786872,0.13724834,68596.0,68595.0,0.04369221]
[1730612788274,0.13824834,68596.0,68595.0,0.04869221]
[1730612789070,0.13824834,68596.0,68595.0,0.05369221]
[1730612790280,0.13824834,68596.0,68595.0,0.01]
[1730612790281,0.17807124,68596.0,68595.0,0.01]
[1730612790669,0.53887124,68596.0,68595.0,0.01]
[1730612792174,0.58507829,68596.0,68595.0,0.01]
[1730612793779,1.08677063,68596.0,68595.0,0.01]
[1730612794166,1.02243829,68596.0,68595.0,0.01]
[1730612795277,1.05068091,68596.0,68595.0,0.01]
[1730612796278,0.96465096,68596.0,68595.0,0.01]
[1730612799180,0.52729096,68596.0,68595.0,0.01]
[1730612800279,1.0289833,68596.0,68595.0,0.01]
[1730612802675,0.96465096,68596.0,68595.0,0.01]
[1730612805179,1.0289833,68596.0,68595.0,0.01]
[1730612806976,0.55607862,68596.0,68595.0,0.01]
[1730612808180,0.46295862,68596.0,68595.0,0.01]
[1730612808383,0.55607862,68596.0,68595.0,0.01]
[1730612811289,0.59574678,68596.0,68595.0,0.01]
[1730612811983,0.23494678,68596.0,68595.0,0.01]
[1730612812391,0.64181373,68596.0,68595.0,0.01]
[1730612812991,0.28101373,68596.0,68595.0,0.01]
[1730612813195,0.64181373,68596.0,68595.0,0.01]
[1730612817299,0.64192828,68596.0,68595.0,0.01]
[1730612817502,0.64192828,68596.0,68578.0,0.00218722]
[1730612817503,0.072931,68582.0,68578.0,0.00218722]
[1730612817795,0.13726334,68582.0,68578.0,0.07512222]
[1730612818491,0.072932,68581.0,68578.0,0.07512222]
[1730612819089,0.072932,68581.0,68578.0,0.09612222]
[1730612820493,0.073932,68581.0,68578.0,0.09112222]
[1730612820695,0.074932,68581.0,68578.0,0.08612222]
[1730612822596,0.002,68581.0,68578.0,0.01318722]
[1730612822796,0.072934,68579.0,68578.0,0.01318722]
[1730612823695,0.072934,68579.0,68578.0,0.00618722]
[1730612823991,0.072934,68579.0,68578.0,0.01218722]
[1730612824187,0.13726634,68579.0,68578.0,0.00818722]
[1730612824597,0.13726634,68579.0,68578.0,0.04588885]
[1730612824803,0.13826634,68579.0,68578.0,0.05188885]
[1730612824987,0.13926634,68579.0,68578.0,0.05188885]
[1730612825388,0.13926634,68579.0,68578.0,0.00818722]
[1730612825592,0.074934,68579.0,68578.0,0.05188713]
[1730612826399,0.074934,68579.0,68578.0,0.00818722]
[1730612827506,0.13926634,68579.0,68578.0,0.00818722]
[1730612827699,0.20359868,68579.0,68578.0,0.00818722]
[1730612828999,0.13926634,68579.0,68578.0,0.00818722]
[1730612829201,0.20359868,68579.0,68578.0,0.006]
[1730612829402,0.24219971,68579.0,68578.0,0.006]
[1730612830705,0.67963971,68579.0,68578.0,0.006]
[1730612831302,0.07295,68564.0,68563.0,0.0956]
[1730612831498,0.13728234,68564.0,68563.0,0.0956]
[1730612832098,0.13728234,68564.0,68557.0,0.072957]
[1730612832099,0.072953,68561.0,68557.0,0.072957]
[1730612832507,0.06433234,68560.0,68555.0,0.06433234]
[1730612832702,0.06433234,68558.0,68554.0,0.0933]
[1730612833500,0.06433234,68558.0,68557.0,0.05819363]
[1730612833805,0.13728934,68558.0,68556.0,0.05819363]
[1730612834006,0.13728934,68558.0,68555.0,0.05819363]
[1730612834212,0.3608,68559.0,68557.0,0.001]
[1730612834506,0.073954,68561.0,68557.0,0.001]
[1730612834713,0.073954,68561.0,68558.0,0.04361929]
[1730612835010,0.072954,68561.0,68558.0,0.04361929]
[1730612835407,0.072955,68560.0,68558.0,0.04361929]
[1730612835598,0.072955,68559.0,68557.0,0.04761929]
[1730612836406,0.072955,68559.0,68558.0,0.13728834]
[1730612836712,0.072955,68559.0,68558.0,0.18090763]
[1730612837099,0.072955,68559.0,68558.0,0.13728834]
[1730612837305,0.072955,68559.0,68558.0,0.18090763]
[1730612837505,0.072955,68559.0,68558.0,0.13728834]
[1730612838204,0.073955,68559.0,68558.0,0.18090763]
[1730612842421,0.073955,68559.0,68558.0,0.13728834]
[1730612845115,0.073955,68559.0,68558.0,0.072956]
[1730612851912,0.072957,68557.0,68556.0,0.07282035]
[1730612852115,0.13728934,68557.0,68556.0,0.16618599]
[1730612852312,0.13728934,68557.0,68555.0,0.14577835]
[1730612852313,0.072958,68556.0,68555.0,0.14577835]
[1730612852711,0.072958,68556.0,68555.0,0.23920889]
[1730612852911,0.072958,68556.0,68555.0,0.23910064]
[1730612853315,0.072958,68556.0,68555.0,0.23909963]
[1730612854312,0.06433234,68557.0,68553.0,0.07282035]
[1730612854513,0.13729234,68554.0,68553.0,0.07282035]
[1730612854732,0.13729234,68554.0,68552.0,0.07282035]
[1730612854733,0.072961,68553.0,68552.0,0.07282035]
[1730612855026,0.072961,68553.0,68551.0,0.14578335]
[1730612855718,0.072962,68552.0,68551.0,0.07282035]
[1730612855915,0.072962,68552.0,68550.0,0.3608]
[1730612856219,0.06433234,68551.0,68550.0,0.3608]
[1730612856426,0.13729534,68551.0,68550.0,0.3608]
[1730612856813,0.13729534,68551.0,68549.0,0.04370214]
[1730612857018,0.13729534,68551.0,68547.0,0.00218784]
[1730612857019,0.072966,68549.0,68547.0,0.00218784]
[1730612857225,0.06433234,68548.0,68547.0,0.07515584]
[1730612858725,0.001,68548.0,68547.0,0.07915584]
[1730612859127,0.073967,68548.0,68547.0,0.07915584]
[1730612859517,0.074967,68548.0,68547.0,0.07915584]
[1730612863116,0.13929934,68548.0,68547.0,0.12286454]
[1730612863611,0.13929934,68548.0,68547.0,0.07915584]
[1730612865223,0.074967,68548.0,68547.0,0.07915584]
[1730612869526,0.002,68548.0,68547.0,0.07915584]
[1730612874639,0.002,68548.0,68547.0,0.15197619]
[1730612875432,0.002,68548.0,68547.0,0.24592898]
[1730612876441,0.002,68548.0,68547.0,0.61074863]
[1730612876740,0.002,68548.0,68547.0,0.69813305]
[1730612877041,0.002,68548.0,68547.0,0.61067403]
[1730612877743,0.002,68548.0,68547.0,0.72252148]
[1730612878332,0.002,68548.0,68547.0,1.08332148]
[1730612878935,0.002,68548.0,68547.0,0.87759584]
[1730612879635,0.002,68548.0,68547.0,0.51679584]
[1730612879835,0.002,68548.0,68547.0,0.87759584]
[1730612880333,0.002,68548.0,68547.0,0.43995584]
[1730612880535,0.002,68548.0,68547.0,0.07915584]
[1730612880736,0.002,68548.0,68547.0,0.43995584]
[1730612882138,0.002,68548.0,68547.0,0.07915584]
[1730612882340,0.002,68548.0,68547.0,0.43995584]
[1730612883647,0.002,68548.0,68547.0,0.07915584]
[1730612883949,0.002,68548.0,68547.0,0.43995584]
[1730612884537,0.002,68548.0,68547.0,0.49823186]
[1730612884752,0.002,68548.0,68547.0,0.43995584]
[1730612886148,0.002,68548.0,68547.0,0.53374995]
[1730612888448,0.002,68548.0,68547.0,0.53372004]
[1730612891256,0.002,68548.0,68547.0,0.53373803]
[1730612892953,0.002,68548.0,68547.0,0.62125479]
[1730612893158,0.002,68548.0,68547.0,0.1730057]
[1730612893456,0.0949,68548.0,68547.0,0.26046019]
[1730612894164,0.167867,68548.0,68547.0,0.1730057]
[1730612894758,0.167867,68548.0,68547.0,0.26046019]
[1730612895055,0.167867,68548.0,68547.0,0.1730057]
[1730612900959,0.167867,68548.0,68547.0,0.07915584]
[1730612902156,0.0949,68548.0,68547.0,0.07915584]
[1730612908667,0.0949,68548.0,68547.0,0.17323708]
[1730612916572,0.0949,68548.0,68547.0,0.15210507]
[1730612917179,0.0949,68548.0,68547.0,0.24630152]
[1730612918976,0.002,68548.0,68547.0,0.23768463]
[1730612919869,0.002,68548.0,68547.0,0.23549679]
[1730612921380,0.002,68548.0,68547.0,0.23535045]
[1730612922171,0.002,68548.0,68547.0,0.32288953]
[1730612923281,0.002,68548.0,68547.0,0.23535045]
[1730612923778,0.002,68548.0,68547.0,0.34745106]
[1730612924079,0.002,68548.0,68547.0,0.28311872]
[1730612926081,0.13929934,68548.0,68547.0,0.28311872]
[1730612926780,0.13929934,68548.0,68547.0,0.17101811]
[1730612927885,0.13929934,68548.0,68547.0,0.2585896]
[1730612928886,0.16655054,68548.0,68547.0,0.2585896]
[1730612929780,0.16655054,68548.0,68547.0,0.1856216]
[1730612930487,0.16655054,68548.0,68547.0,0.18581449]
[1730612930677,0.16655054,68548.0,68547.0,0.004]
[1730612933274,0.16655054,68548.0,68547.0,0.04777731]
[1730612938787,0.16655054,68548.0,68547.0,0.004]
[1730612939194,0.16655054,68548.0,68547.0,0.0623623]
[1730612941483,0.52735054,68548.0,68547.0,0.0623623]
[1730612941688,0.52735054,68548.0,68547.0,0.004]
[1730612942291,0.52735054,68548.0,68547.0,0.04776648]
[1730612942684,0.96499054,68548.0,68547.0,0.04776648]
[1730612943093,0.96499054,68548.0,68547.0,0.04776581]
[1730612944890,0.96499054,68548.0,68547.0,0.004]
[1730612946186,0.52735054,68548.0,68547.0,0.004]
[1730612948290,0.52735054,68548.0,68547.0,0.04774825]
[1730612948789,0.25963054,68548.0,68547.0,0.004]
[1730612950103,0.16655054,68548.0,68547.0,0.004]
[1730612950285,0.25963054,68548.0,68547.0,0.004]
[1730612953895,0.29681924,68548.0,68547.0,0.004]
[1730612954091,0.20373924,68548.0,68547.0,0.004]
[1730612960800,0.16655054,68548.0,68547.0,0.004]
[1730612965202,0.16655054,68548.0,68547.0,0.0623623]
[1730612968907,0.24702979,68548.0,68547.0,0.004]
[1730612969412,0.24702979,68548.0,68547.0,0.076968]
[1730612970210,0.16655054,68548.0,68547.0,0.076968]
[1730612970511,0.24676523,68548.0,68547.0,0.076968]
[1730612970923,0.10946589,68548.0,68547.0,0.076968]
[1730612971212,0.06636964,68548.0,68547.0,0.076968]
[1730612975806,0.0292512,68548.0,68547.0,0.076968]
[1730612976214,0.1022182,68548.0,68547.0,0.076968]
[1730612994323,0.1022182,68548.0,68547.0,0.004]
[1730612996215,0.13922814,68548.0,68547.0,0.004]
[1730612996927,0.1022182,68548.0,68547.0,0.004]
[1730612999023,0.4630182,68548.0,68547.0,0.004]
[1730613002534,0.4630182,68548.0,68547.0,0.04776854]
[1730613003430,0.4630182,68548.0,68535.0,0.07296812]
[1730613003431,0.07297,68545.0,68539.0,0.04376824]
[1730613003627,0.48946468,68540.0,68537.0,0.04376824]
[1730613003836,0.072978,68537.0,68535.0,0.04376824]
[1730613004031,0.13731134,68536.0,68535.0,0.04376824]
[1730613004231,0.072981,68535.0,68534.0,0.04376824]
[1730613004626,0.06433234,68536.0,68532.0,0.04376824]
[1730613004627,0.072982,68534.0,68532.0,0.04376824]
[1730613004929,0.433782,68534.0,68531.0,0.04376824]
[1730613005631,0.433782,68534.0,68528.0,0.04376824]
[1730613005934,0.433782,68534.0,68526.0,0.3608]
[1730613006125,0.3608,68534.0,68527.0,0.072989]
[1730613006325,0.13732034,68528.0,68527.0,0.072989]
[1730613007123,0.06433234,68528.0,68522.0,0.39504]
[1730613007329,0.13732334,68525.0,68523.0,0.072993]
[1730613008426,0.072993,68523.0,68522.0,0.3608]
[1730613009426,0.072995,68521.0,68520.0,0.072996]
[1730613009632,0.13732734,68521.0,68520.0,0.072996]
[1730613010932,0.06433234,68521.0,68515.0,0.0323]
[1730613011233,0.13733234,68518.0,68517.0,0.073]
[1730613011627,0.06433234,68518.0,68514.0,0.3939]
[1730613011832,0.13733434,68515.0,68514.0,0.433803]
[1730613014436,0.13833434,68515.0,68514.0,0.433803]
[1730613014639,0.13933434,68515.0,68514.0,0.433803]
[1730613014832,0.13933434,68515.0,68514.0,0.073003]
[1730613015232,0.073004,68513.0,68512.0,0.05837397]
[1730613015432,0.073005,68512.0,68511.0,0.05837397]
[1730613015629,0.13733734,68512.0,68511.0,0.05837397]
[1730613016538,0.073006,68511.0,68510.0,0.49334097]
[1730613016745,0.073006,68511.0,68510.0,0.49218097]
[1730613017947,0.074006,68511.0,68510.0,0.49218097]
[1730613018247,0.075006,68511.0,68510.0,0.49218097]
[1730613019938,0.075006,68511.0,68510.0,0.41917397]
[1730613021127,0.075006,68511.0,68510.0,0.3608]
[1730613022632,0.075006,68511.0,68507.0,0.105709]
[1730613022633,0.073009,68509.0,68507.0,0.105709]
[1730613022939,0.02940877,68511.0,68508.0,0.3608]
[1730613023137,0.06433234,68509.0,68508.0,0.3608]
[1730613023439,0.13734034,68509.0,68508.0,0.3608]
[1730613023736,0.13734034,68509.0,68508.0,0.433809]
[1730613023947,0.13834034,68509.0,68508.0,0.433809]
[1730613024427,0.074008,68509.0,68508.0,0.433809]
[1730613024628,0.073008,68509.0,68508.0,0.49814134]
[1730613024838,0.075008,68509.0,68508.0,0.49814134]
[1730613028545,0.075008,68509.0,68508.0,0.433809]
[1730613029135,0.075008,68509.0,68508.0,0.52966913]
[1730613031247,0.075008,68509.0,68508.0,0.16886913]
[1730613031442,0.075008,68509.0,68508.0,0.52966913]
[1730613032548,0.075008,68509.0,68508.0,0.61724062]
[1730613033547,0.075008,68509.0,68508.0,0.52966913]
[1730613034445,0.075008,68509.0,68508.0,0.64406951]
[1730613036347,0.075008,68509.0,68508.0,0.28326951]
[1730613036650,0.075008,68509.0,68508.0,0.64406951]
[1730613037454,0.075008,68509.0,68508.0,0.28326951]
[1730613037637,0.075008,68509.0,68508.0,0.64406951]
[1730613038039,0.075008,68509.0,68508.0,0.28326951]
[1730613038246,0.075008,68509.0,68508.0,0.64406951]
[1730613038751,0.075008,68509.0,68508.0,0.28326951]
[1730613038947,0.075008,68509.0,68508.0,0.64406951]
[1730613039250,0.075008,68509.0,68508.0,0.28326951]
[1730613039754,0.075008,68509.0,68508.0,0.64406951]
[1730613040369,0.075008,68509.0,68508.0,0.28326951]
[1730613040756,0.075008,68509.0,68508.0,0.64406951]
[1730613041057,0.075008,68509.0,68508.0,0.28326951]
[1730613041255,0.075008,68509.0,68508.0,0.64406951]
[1730613041844,0.075008,68509.0,68508.0,0.28326951]
[1730613042045,0.075008,68509.0,68508.0,0.52966913]
[1730613042245,0.075008,68509.0,68508.0,0.5442896]
[1730613042441,0.075008,68509.0,68508.0,0.45666013]
[1730613043654,0.074008,68509.0,68508.0,0.45666013]
[1730613043840,0.075008,68509.0,68508.0,0.45666013]
[1730613044256,0.075008,68509.0,68508.0,0.3608]
[1730613044650,0.074008,68509.0,68507.0,0.07301]
[1730613044962,0.075008,68509.0,68507.0,0.07301]
[1730613046553,0.002,68509.0,68507.0,0.07301]
[1730613046762,0.073009,68508.0,68507.0,0.07301]
[1730613048646,0.074009,68508.0,68507.0,0.07301]
[1730613049265,0.075009,68508.0,68507.0,0.07301]
[1730613049559,0.075009,68508.0,68507.0,0.04377956]
[1730613049755,0.002,68508.0,68507.0,0.04377956]
[1730613049953,0.002,68508.0,68506.0,0.04377956]
[1730613050144,0.002,68508.0,68505.0,0.00218918]
[1730613050145,0.09733234,68507.0,68505.0,0.00218918]
[1730613050347,0.073011,68506.0,68505.0,0.00218918]
[1730613051153,0.073011,68506.0,68505.0,0.18631622]
[1730613051748,0.074011,68506.0,68505.0,0.18631521]
[1730613052962,0.075011,68506.0,68505.0,0.18631521]
[1730613053550,0.075011,68506.0,68505.0,0.09868574]
[1730613056062,0.075011,68506.0,68505.0,0.1862254]
[1730613058761,0.435811,68506.0,68505.0,0.09868574]
[1730613059156,0.435811,68506.0,68505.0,0.00218918]
[1730613059853,0.434811,68506.0,68505.0,0.00218918]
[1730613060055,0.435811,68506.0,68505.0,0.00218918]
[1730613060258,0.467511,68506.0,68505.0,0.00218918]
[1730613061359,0.466511,68506.0,68505.0,0.00218918]
[1730613061563,0.467511,68506.0,68505.0,0.00218918]
[1730613065162,0.106711,68506.0,68505.0,0.00218918]
[1730613068769,0.0337,68506.0,68504.0,0.07295504]
[1730613068970,0.166012,68505.0,68504.0,0.07295504]
[1730613069163,0.166012,68505.0,68504.0,0.09661841]
[1730613069765,0.166012,68505.0,68504.0,0.16956983]
[1730613070670,0.166012,68505.0,68504.0,0.09661841]
[1730613070972,0.167012,68505.0,68504.0,0.09661841]
[1730613072063,0.168012,68505.0,68504.0,0.09661841]
[1730613074261,0.528812,68505.0,68504.0,0.09661841]
[1730613076156,0.435812,68505.0,68504.0,0.09661841]
[1730613076359,0.528772,68505.0,68504.0,0.09661841]
[1730613077571,0.075012,68505.0,68504.0,0.16963241]
[1730613077769,0.09496,68505.0,68504.0,0.25717207]
[1730613078068,0.002,68505.0,68504.0,0.16950279]
[1730613078284,0.002,68505.0,68504.0,0.23383513]
[1730613081267,0.002,68505.0,68504.0,0.74471358]
[1730613081474,0.073003,68515.0,68514.0,0.073003]
[1730613082171,0.10080193,68515.0,68514.0,0.073003]
[1730613082575,0.10180193,68515.0,68514.0,0.073003]
[1730613083376,0.10180193,68515.0,68514.0,0.074003]
[1730613083377,0.10280193,68515.0,68514.0,0.074003]
[1730613088379,0.10280193,68515.0,68514.0,0.001]
[1730613088583,0.16713427,68515.0,68514.0,0.001]
[1730613089481,0.19833427,68515.0,68514.0,0.001]
[1730613090583,0.13400193,68515.0,68514.0,0.001]
[1730613090989,0.13400193,68515.0,68514.0,0.04476171]
[1730613092378,0.19833427,68515.0,68514.0,0.04476171]
[1730613092685,0.13400193,68515.0,68514.0,0.04476171]
[1730613095875,0.13400193,68515.0,68514.0,0.001]
[1730613096779,0.2091309,68515.0,68514.0,0.001]
[1730613097079,0.20909122,68515.0,68514.0,0.001]
[1730613098686,0.20927988,68515.0,68514.0,0.001]
[1730613100380,0.27361222,68515.0,68514.0,0.001]
[1730613101578,0.20927988,68515.0,68514.0,0.001]
[1730613101980,0.27361222,68515.0,68514.0,0.001]
[1730613103190,0.30204089,68515.0,68514.0,0.001]
[1730613103685,0.22696193,68515.0,68514.0,0.001]
[1730613104980,0.22692193,68515.0,68514.0,0.001]
[1730613105392,0.29125427,68515.0,68514.0,0.001]
[1730613110594,0.72913427,68515.0,68514.0,0.001]
[1730613110892,0.72913427,68515.0,68503.0,0.05834895]
[1730613110893,0.07301,68507.0,68506.0,0.04376171]
[1730613111101,0.43381,68507.0,68506.0,0.04376171]
[1730613111393,0.073011,68506.0,68505.0,0.04376171]
[1730613111593,0.23026334,68506.0,68505.0,0.04376171]
[1730613111892,0.073017,68501.0,68500.0,0.1]
[1730613112079,0.10739978,68501.0,68500.0,0.1]
[1730613114286,0.073017,68501.0,68500.0,0.1]
[1730613114486,0.074017,68501.0,68500.0,0.101]
[1730613114797,0.002,68501.0,68500.0,0.174018]
[1730613115088,0.002,68501.0,68500.0,0.238018]
[1730613116192,0.075017,68501.0,68500.0,0.238018]
[1730613121693,0.13934934,68501.0,68500.0,0.238018]
[1730613124805,0.13934934,68501.0,68500.0,0.15936177]
[1730613124999,0.13934934,68501.0,68500.0,0.101]
[1730613127087,0.20368168,68501.0,68500.0,0.101]
[1730613127292,0.13934934,68501.0,68500.0,0.101]
[1730613131094,0.13934934,68501.0,68500.0,0.14477547]
[1730613132406,0.13934934,68501.0,68500.0,0.14477787]
[1730613133908,0.13834934,68501.0,68500.0,0.101]
[1730613134108,0.13934934,68501.0,68500.0,0.101]
[1730613134899,0.23222934,68501.0,68500.0,0.101]
[1730613138605,0.26660222,68501.0,68500.0,0.101]
[1730613140806,0.23222934,68501.0,68500.0,0.101]
[1730613141495,0.26658366,68501.0,68500.0,0.101]
[1730613141903,0.23222934,68501.0,68500.0,0.101]
[1730613149204,0.26655783,68501.0,68500.0,0.101]
[1730613149507,0.33089017,68501.0,68500.0,0.101]
[1730613149913,0.33080464,68501.0,68500.0,0.101]
[1730613150516,0.69160464,68501.0,68500.0,0.101]
[1730613151100,0.73130902,68501.0,68500.0,0.101]
[1730613152409,0.73136841,68501.0,68500.0,0.101]
[1730613152609,0.73036841,68501.0,68500.0,0.101]
[1730613152909,0.69160746,68501.0,68500.0,0.101]
[1730613153510,0.53439512,68501.0,68500.0,0.101]
[1730613153712,0.62727512,68501.0,68500.0,0.101]
[1730613155321,0.69160746,68501.0,68500.0,0.101]
[1730613156811,0.65736168,68501.0,68500.0,0.101]
[1730613163834,0.69174573,68501.0,68500.0,0.101]
[1730613167933,0.73164808,68501.0,68500.0,0.101]
[1730613168331,0.69174573,68501.0,68500.0,0.101]
[1730613169623,0.69074573,68501.0,68500.0,0.101]
[1730613169934,0.69174573,68501.0,68500.0,0.101]
[1730613170821,0.69172156,68501.0,68500.0,0.101]
[1730613171128,0.69169295,68501.0,68500.0,0.101]
[1730613171833,0.65736168,68501.0,68500.0,0.101]
[1730613174033,0.59302934,68501.0,68500.0,0.101]
[1730613179437,0.59302934,68501.0,68500.0,0.14480519]
[1730613180229,0.06633234,68501.0,68500.0,0.101]
[1730613180434,0.23222934,68501.0,68500.0,0.174018]
[1730613181226,0.06633234,68501.0,68500.0,0.23237977]
[1730613181428,0.002,68501.0,68500.0,0.174018]
[1730613182149,0.002,68501.0,68500.0,0.611978]
[1730613182439,0.09288,68508.0,68500.0,0.67631034]
[1730613182440,0.06433234,68508.0,68500.0,0.67631034]
[1730613182626,0.06433234,68508.0,68507.0,0.07301]
[1730613183027,0.06433234,68508.0,68507.0,0.13751]
[1730613183832,0.09191449,68508.0,68507.0,0.13751]
[1730613184141,0.09191449,68508.0,68507.0,0.13851]
[1730613184526,0.06433234,68508.0,68507.0,0.13851]
[1730613184727,0.36156,68512.0,68511.0,0.073006]
[1730613184933,0.42589234,68516.0,68514.0,0.073003]
[1730613185139,0.10351046,68515.0,68514.0,0.073003]
[1730613185331,0.07519242,68515.0,68514.0,0.073003]
[1730613187442,0.00219042,68515.0,68514.0,0.073003]
[1730613187642,0.00319042,68515.0,68514.0,0.073003]
[1730613188044,0.00519042,68515.0,68514.0,0.073003]
[1730613188241,0.00519042,68515.0,68514.0,0.433803]
[1730613188445,0.06433234,68523.0,68522.0,0.072994]
[1730613189037,0.09176388,68523.0,68522.0,0.072994]
[1730613189747,0.09376388,68523.0,68522.0,0.072994]
[1730613190140,0.09476388,68523.0,68522.0,0.072994]
[1730613191558,0.003,68523.0,68522.0,0.13732634]
[1730613192448,0.003,68523.0,68522.0,0.57512634]
[1730613192642,0.00218957,68537.0,68536.0,0.072979]
[1730613193043,0.06652191,68537.0,68536.0,0.072979]
[1730613193747,0.00318957,68537.0,68536.0,0.072979]
[1730613194142,0.00218957,68537.0,68536.0,0.072979]
[1730613194341,0.07616757,68537.0,68536.0,0.072979]
[1730613194738,0.07716757,68537.0,68536.0,0.072979]
[1730613196043,0.07616757,68537.0,68536.0,0.072979]
[1730613196238,0.07716757,68537.0,68536.0,0.072979]
[1730613196436,0.072983,68533.0,68532.0,0.072982]
[1730613197849,0.074983,68533.0,68532.0,0.072982]
[1730613204051,0.074983,68533.0,68530.0,0.3608]
[1730613204052,0.072985,68531.0,68530.0,0.3608]
[1730613204449,0.072985,68531.0,68530.0,0.433786]
[1730613205353,0.073985,68531.0,68530.0,0.433786]
[1730613206246,0.074985,68531.0,68530.0,0.433786]
[1730613209760,0.10298296,68531.0,68530.0,0.433786]
[1730613212858,0.10298296,68531.0,68530.0,0.3608]
[1730613213046,0.072988,68528.0,68526.0,0.072989]
[1730613213251,0.09816852,68527.0,68522.0,0.04375831]
[1730613213454,0.072994,68522.0,68521.0,0.04375831]
[1730613213647,0.072994,68522.0,68521.0,0.11675331]
[1730613214554,0.072994,68522.0,68521.0,0.072995]
[1730613216459,0.073994,68522.0,68521.0,0.072995]
[1730613216763,0.074994,68522.0,68521.0,0.072995]
[1730613219558,0.074994,68522.0,68521.0,0.11670329]
[1730613220358,0.074994,68522.0,68521.0,0.072995]
[1730613220662,0.074994,68522.0,68521.0,0.11670329]
[1730613221862,0.074994,68522.0,68521.0,0.11674108]
[1730613223965,0.002,68522.0,68521.0,0.072995]
[1730613229268,0.002,68522.0,68521.0,0.57522456]
[1730613229670,0.002,68522.0,68521.0,0.87522456]
[1730613229977,0.002,68522.0,68521.0,0.57522456]
[1730613230570,0.002,68522.0,68516.0,0.02773443]
[1730613230571,2.66738573,68500.0,68487.0,0.1461]
[1730613230769,1.54217212,68500.0,68499.0,1.96251758]
[1730613230964,1.21010012,68500.0,68499.0,1.96251758]
[1730613231178,1.21010012,68500.0,68499.0,2.18183707]
[1730613231479,0.75317112,68500.0,68499.0,2.20934309]
[1730613231773,0.47506212,68500.0,68499.0,2.20934309]
[1730613232166,0.38011904,68500.0,68499.0,2.48470809]
[1730613232362,0.25464504,68500.0,68499.0,2.48970809]
[1730613232563,0.13221204,68500.0,68499.0,2.49370809]
[1730613232763,4e-08,68500.0,68499.0,2.49370809]
[1730613233472,0.3608,68521.0,68499.0,2.49370809]
[1730613233675,0.3608,68521.0,68520.0,0.13742556]
[1730613233972,0.433795,68521.0,68520.0,0.15946747]
[1730613234176,0.073,68517.0,68516.0,0.13742956]
[1730613234378,0.073,68517.0,68516.0,0.15684707]
[1730613234573,0.073,68517.0,68516.0,0.06442956]
[1730613234878,0.073002,68515.0,68514.0,0.073003]
[1730613235077,0.073002,68515.0,68514.0,0.16573318]
[1730613236381,0.073002,68515.0,68514.0,0.16773318]
[1730613236879,0.073002,68515.0,68514.0,0.16973318]
[1730613238766,0.073002,68515.0,68514.0,0.16969133]
[1730613239266,0.073002,68515.0,68514.0,0.28016149]
[1730613241775,0.433802,68515.0,68514.0,0.28016149]
[1730613246685,0.433802,68515.0,68514.0,0.28054116]
[1730613247085,0.073002,68515.0,68514.0,0.28054116]
[1730613247385,0.433802,68515.0,68514.0,0.28054116]
[1730613248780,0.073002,68515.0,68514.0,0.28054116]
[1730613249387,0.433802,68515.0,68514.0,0.28054116]
[1730613250092,0.073002,68515.0,68514.0,0.28054116]
[1730613250584,0.433802,68515.0,68514.0,0.28054116]
[1730613251377,0.433802,68515.0,68514.0,0.28054271]
[1730613252986,0.073002,68515.0,68514.0,0.28054271]
[1730613253489,0.433802,68515.0,68514.0,0.28054271]
[1730613254375,0.433802,68515.0,68514.0,0.077003]
[1730613255188,0.871602,68515.0,68514.0,0.077003]
[1730613256786,1.232402,68515.0,68514.0,0.077003]
[1730613257188,0.510802,68515.0,68514.0,0.077003]
[1730613257391,1.232402,68515.0,68514.0,0.077003]
[1730613258188,0.073011,68508.0,68507.0,0.07301]
[1730613258397,0.433811,68508.0,68507.0,0.07301]
[1730613259390,0.434811,68508.0,68507.0,0.07901]
[1730613259583,0.435811,68508.0,68507.0,0.08301]
[1730613261497,0.435811,68508.0,68507.0,0.2404445]